bitfinex-derivatives/quotes_ETHF0:USTF0_20250505
["timestamp","ask_amount","ask_price","bid_price","bid_amount"]
[1746439817793,0.68615462,1821.0,1820.9,41.8983]
[1746439818091,0.68620473,1821.0,1820.9,41.8983]
[1746439818292,0.68620473,1821.0,1820.9,45.6303]
[1746439819785,0.68466136,1821.0,1820.9,45.6303]
[1746439820191,0.68466136,1821.0,1820.9,46.4576]
[1746439821493,0.6842477,1821.0,1820.9,46.4576]
[1746439821887,0.6842477,1821.0,1820.9,48.1685]
[1746439823193,0.68445543,1821.0,1820.9,48.1685]
[1746439824896,0.68419305,1821.0,1820.9,48.1685]
[1746439825297,0.2735529,1821.0,1820.9,48.1685]
[1746439827497,1.9138529,1821.0,1820.9,48.1685]
[1746439829503,2.34402642,1821.0,1820.9,48.1685]
[1746439832201,2.07047352,1821.0,1820.9,48.1685]
[1746439832701,0.43017352,1821.0,1820.9,48.1685]
[1746439834095,0.43017352,1821.0,1820.9,51.3763]
[1746439838403,0.84121983,1821.0,1820.9,51.3763]
[1746439838606,0.84126323,1821.0,1820.9,51.3763]
[1746439839204,2.48946323,1821.0,1820.9,51.3763]
[1746439840406,2.48965154,1821.0,1820.9,51.3763]
[1746439841800,0.84145154,1821.0,1820.9,51.3763]
[1746439841993,0.84154025,1821.0,1820.9,51.3763]
[1746439845207,2.51604025,1821.0,1820.9,51.3763]
[1746439847306,2.51714059,1821.0,1820.9,51.3763]
[1746439847509,2.51714059,1821.0,1820.9,48.1685]
[1746439848004,2.79069349,1821.0,1820.9,48.1685]
[1746439848206,2.51714059,1821.0,1820.9,48.1685]
[1746439848708,3.88893349,1821.0,1820.9,45.6303]
[1746439848904,3.88904561,1821.0,1820.9,45.6303]
[1746439849101,8.88904561,1821.0,1820.9,44.532]
[1746439849299,12.09684561,1821.0,1820.9,44.532]
[1746439850104,12.09684561,1821.0,1820.9,40.8]
[1746439850503,12.14928891,1821.0,1820.9,40.8]
[1746439851110,12.14928891,1821.0,1820.9,44.532]
[1746439854216,12.14928891,1821.0,1820.9,40.8]
[1746439855816,12.15221899,1821.0,1820.9,40.8]
[1746439857009,12.15221899,1821.0,1820.4,2.82366]
[1746439857010,1.09861,1820.5,1820.4,1.0986]
[1746439857211,1.99673609,1820.5,1820.4,4.8306]
[1746439857415,5.25783609,1820.5,1820.4,4.8306]
[1746439858016,5.25783609,1820.5,1820.4,45.6306]
[1746439858516,4.44583609,1820.5,1820.4,45.6306]
[1746439858705,3.34722609,1820.5,1820.4,45.6306]
[1746439859109,3.34716374,1820.5,1820.4,45.6306]
[1746439859711,0.89806374,1820.5,1820.4,45.6306]
[1746439860118,1.99660374,1820.5,1820.4,45.6306]
[1746439860415,4.41170374,1820.5,1820.4,45.6306]
[1746439860716,4.41139773,1820.5,1820.4,45.6306]
[1746439862019,4.41137557,1820.5,1820.4,45.6306]
[1746439862916,4.41137557,1820.5,1820.4,44.532]
[1746439863219,4.68492847,1820.5,1820.4,44.532]
[1746439863628,4.6851902,1820.5,1820.4,44.532]
[1746439864912,4.6851902,1820.5,1820.4,46.2365]
[1746439865110,4.68513544,1820.5,1820.4,46.2365]
[1746439865315,3.90733544,1820.5,1820.4,46.2365]
[1746439865821,2.27003544,1820.5,1820.4,46.2365]
[1746439866024,2.26970989,1820.5,1820.4,46.2365]
[1746439866321,3.94750989,1820.5,1820.4,44.532]
[1746439867118,3.94759734,1820.5,1820.4,44.532]
[1746439867920,3.94759734,1820.5,1820.4,46.2378]
[1746439868719,3.94756048,1820.5,1820.4,46.2378]
[1746439870025,3.94756048,1820.5,1820.4,44.532]
[1746439872223,3.94771507,1820.5,1820.4,44.532]
[1746439872424,4.39386438,1820.5,1820.4,44.532]
[1746439873022,3.94771507,1820.5,1820.4,44.532]
[1746439875527,3.94842516,1820.5,1820.4,44.532]
[1746439877227,3.94836008,1820.5,1820.4,44.532]
[1746439877829,3.94836008,1820.5,1820.4,46.1383]
[1746439880529,2.27056008,1820.5,1820.4,46.1383]
[1746439880829,2.26319906,1820.5,1820.4,47.2369]
[1746439881329,5.47099906,1820.5,1820.4,47.2369]
[1746439882330,5.47102781,1820.5,1820.4,46.1383]
[1746439883331,5.47102781,1820.5,1820.4,47.2369]
[1746439883731,4.09893491,1820.5,1820.4,47.2369]
[1746439883929,0.89113491,1820.5,1820.4,47.2369]
[1746439884233,1.98968707,1820.5,1820.4,47.2369]
[1746439885336,1.98972104,1820.5,1820.4,47.2369]
[1746439885634,0.89118104,1820.5,1820.4,47.2369]
[1746439886632,0.8912044,1820.5,1820.4,47.2369]
[1746439887935,0.89103842,1820.5,1820.4,47.2369]
[1746439889135,0.43017352,1820.5,1820.4,47.2369]
[1746439889440,0.89100685,1820.5,1820.4,47.2369]
[1746439890442,0.89098027,1820.5,1820.4,47.2369]
[1746439891442,1.98952027,1820.5,1820.4,47.2369]
[1746439891747,0.89093849,1820.5,1820.4,47.2369]
[1746439892734,0.46076497,1820.5,1820.4,47.2369]
[1746439892942,4.5798429,1820.6,1820.5,1.09854]
[1746439893142,4.5798429,1820.6,1820.5,3.46954]
[1746439894142,4.5798429,1820.6,1820.5,7.20154]
[1746439896646,1.3720429,1820.6,1820.5,7.20154]
[1746439901147,3.0979429,1820.6,1820.5,7.20154]
[1746439901350,3.0979429,1820.6,1820.5,6.103]
[1746439901546,3.0979429,1820.6,1820.5,4.5381]
[1746439902149,3.0979429,1820.6,1820.5,5.63664]
[1746439902349,3.0979429,1820.6,1820.5,7.22904]
[1746439903551,3.0979429,1820.6,1820.5,6.1305]
[1746439904743,3.0979429,1820.6,1820.5,3.732]
[1746439918358,6.3057429,1820.6,1820.5,3.732]
[1746439920755,1.09854,1820.5,1820.4,40.67400235]
[1746439920959,1.09854,1820.5,1819.9,3.258]
[1746439920960,1.3724429,1820.0,1819.9,3.258]
[1746439921164,4.30669,1820.0,1819.9,3.258]
[1746439921364,4.30669,1820.0,1819.9,4.3569]
[1746439921561,3.2078,1820.0,1819.9,4.3569]
[1746439921764,3.2078,1820.0,1819.9,9.3569]
[1746439922062,3.2078,1820.3,1820.2,1.09868]
[1746439922871,3.2078,1820.3,1820.2,2.68928]
[1746439923165,3.2078,1820.3,1820.2,6.42128]
[1746439923366,1.09861,1820.4,1820.3,1.09864]
[1746439923566,1.09861,1820.4,1820.3,2.70454]
[1746439924168,1.0986,1820.4,1820.3,6.43651]
[1746439924666,1.0986,1820.4,1820.3,5.3379]
[1746439925671,1.3721529,1820.4,1820.3,5.3379]
[1746439926269,1.3721529,1820.4,1820.3,6.43656]
[1746439928377,1.3721529,1820.4,1820.3,5.3379]
[1746439929774,1.3721529,1820.4,1820.3,6.43656]
[1746439931769,1.3721529,1820.4,1820.3,5.3379]
[1746439933170,3.0062529,1820.4,1820.3,5.3379]
[1746439934576,1.0986,1820.4,1820.3,6.43656]
[1746439938473,1.3721529,1820.4,1820.3,6.43656]
[1746439941379,1.0986,1820.4,1820.3,6.43656]
[1746439945079,2.8023,1820.4,1820.3,6.43656]
[1746439945682,3.0758529,1820.4,1820.3,6.43656]
[1746439945885,2.8023,1820.4,1820.3,6.43656]
[1746439946283,3.0758529,1820.4,1820.3,6.43656]
[1746439946685,1.7037,1820.4,1820.3,6.43656]
[1746439946879,3.4813529,1820.5,1820.4,1.0986]
[1746439947079,3.4813529,1820.5,1820.4,2.7982]
[1746439947380,4.5798929,1820.5,1820.4,2.7982]
[1746439948273,4.5798929,1820.5,1820.4,6.5302]
[1746439949182,3.4813529,1820.5,1820.4,6.5302]
[1746439949382,4.5798929,1820.5,1820.4,6.5302]
[1746439949577,6.2230929,1820.5,1820.4,6.5302]
[1746439950083,5.1245529,1820.5,1820.4,6.5302]
[1746439950782,6.2230929,1820.5,1820.4,6.5302]
[1746439951581,5.1245529,1820.5,1820.4,6.5302]
[1746439951782,6.2230929,1820.5,1820.4,6.5302]
[1746439952188,5.1245529,1820.5,1820.4,6.5302]
[1746439952382,6.2230929,1820.5,1820.4,6.5302]
[1746439952783,4.4105,1820.7,1820.6,1.09848]
[1746439952984,4.6840529,1820.7,1820.6,1.09848]
[1746439953185,0.8445,1820.7,1820.6,1.09848]
[1746439953384,0.8445,1820.7,1820.6,43.59748]
[1746439953884,0.2735529,1820.8,1820.7,1.09842]
[1746439954084,3.2078,1820.9,1820.8,1.09836]
[1746439954289,3.2078,1820.9,1820.8,2.80146]
[1746439954583,3.2078,1820.9,1820.8,43.60146]
[1746439954889,5.4041429,1821.1,1821.0,1.09824]
[1746439955079,7.0682429,1821.1,1821.0,1.09824]
[1746439955388,7.0682429,1821.1,1821.0,4.83024]
[1746439955583,7.0682429,1821.1,1821.0,45.63024]
[1746439955988,7.0682429,1821.1,1821.0,44.532]
[1746439960082,7.0682429,1821.1,1821.0,45.63024]
[1746439961486,7.0682429,1821.1,1821.0,44.532]
[1746439963895,7.0682429,1821.1,1821.0,46.1322]
[1746439966397,6.2436429,1821.1,1821.0,47.23044]
[1746439967796,6.2436429,1821.1,1821.0,46.1322]
[1746439974106,3.0358429,1821.1,1821.0,46.1322]
[1746439974301,6.2436429,1821.1,1821.0,46.1322]
[1746439976107,3.0358429,1821.1,1821.0,46.1322]
[1746439976303,6.2436429,1821.1,1821.0,47.23044]
[1746439976498,6.2436429,1821.1,1821.0,46.1322]
[1746439980908,11.2436429,1821.1,1821.0,44.532]
[1746439981813,6.2436429,1821.1,1821.0,44.532]
[1746439984215,6.2436429,1821.1,1821.0,40.8]
[1746439985215,6.2436429,1821.1,1821.0,44.532]
[1746439985812,6.2436429,1821.1,1821.0,3.732]
[1746439986212,1.09842,1820.7,1820.6,3.3148]
[1746439986718,2.82272,1820.7,1820.6,3.3148]
[1746439986920,2.82272,1820.7,1820.6,44.1148]
[1746439987122,1.09842,1820.7,1820.6,44.1148]
[1746439988219,1.09842,1820.7,1820.6,45.21328]
[1746439989625,1.09842,1820.7,1820.6,44.1148]
[1746439991122,1.09842,1820.7,1820.6,45.21328]
[1746439992419,4.3062,1820.8,1820.7,1.09842]
[1746439992626,4.3062,1820.8,1820.7,2.77882]
[1746439993124,4.3062,1820.8,1820.7,6.51082]
[1746439994031,4.3062,1820.8,1820.7,5.4124]
[1746439994329,4.3062,1820.8,1820.7,6.51082]
[1746439995328,4.3062,1820.8,1820.7,5.4124]
[1746439995527,4.3062,1820.8,1820.7,6.51082]
[1746439995926,4.5797529,1820.8,1820.7,6.51082]
[1746439998329,4.5797529,1820.8,1820.7,5.4124]
[1746439999129,1.3719529,1820.8,1820.7,5.4124]
[1746439999430,4.5797529,1820.8,1820.7,5.4124]
[1746439999730,4.5797529,1820.8,1820.7,6.51082]
[1746440000630,4.5797529,1820.8,1820.7,5.4124]
[1746440002128,6.2630529,1820.8,1820.7,5.4124]
[1746440009337,6.2630529,1820.8,1820.7,3.732]
[1746440014530,6.2630529,1820.8,1820.7,3.3825]
[1746440014840,11.2630529,1820.8,1820.7,0.63553403]
[1746440015040,6.2630529,1820.8,1820.7,0.63553403]
[1746440015234,1.09842,1820.7,1820.6,40.8]
[1746440015432,7.21452,1820.7,1820.6,40.8]
[1746440016242,7.4880729,1820.7,1820.6,40.8]
[1746440018744,10.6958729,1820.7,1820.6,40.8]
[1746440018946,16.14309444,1820.7,1820.6,40.8]
[1746440022044,15.04467444,1820.7,1820.5,3.732]
[1746440022247,3.48118,1820.6,1820.5,3.732]
[1746440022640,3.7547329,1820.6,1820.5,3.732]
[1746440023145,3.7547329,1820.6,1820.5,41.78476235]
[1746440023340,1.09872,1820.2,1820.1,2.5333]
[1746440023535,4.30652,1820.2,1820.1,2.5333]
[1746440024248,5.90572,1820.2,1820.1,2.5333]
[1746440024446,5.90572,1820.2,1820.1,43.3333]
[1746440024946,6.1792729,1820.2,1820.1,43.3333]
[1746440025143,5.90572,1820.2,1820.1,43.3333]
[1746440025947,6.62451647,1820.2,1820.1,40.8]
[1746440030753,5.90572,1820.2,1820.1,40.8]
[1746440031250,6.1792729,1820.2,1820.1,40.8]
[1746440031751,6.1792729,1820.2,1820.1,44.0403]
[1746440031946,4.30652,1820.2,1820.1,44.0403]
[1746440037064,4.5800729,1820.2,1820.1,44.0403]
[1746440037657,4.30652,1820.2,1820.1,44.0403]
[1746440040552,4.5800729,1820.2,1820.1,44.0403]
[1746440042259,6.1689729,1820.2,1820.1,44.0403]
[1746440043357,6.1689729,1820.2,1820.1,40.8]
[1746440045767,1.09884,1820.0,1819.9,1.6446]
[1746440045961,4.30664,1820.0,1819.9,1.6446]
[1746440046165,4.30664,1820.0,1819.9,5.3766]
[1746440046463,5.86454,1820.0,1819.9,5.3766]
[1746440046661,5.86454,1820.0,1819.9,46.1766]
[1746440046964,6.1380929,1820.0,1819.9,44.532]
[1746440047165,6.9902929,1820.0,1819.9,40.8]
[1746440051569,7.8419929,1820.0,1819.9,40.8]
[1746440052865,6.9902929,1820.0,1819.9,40.8]
[1746440058065,6.1380929,1820.0,1819.9,40.8]
[1746440059061,5.86454,1820.0,1819.9,40.8]
[1746440060165,5.86454,1820.0,1819.9,44.532]
[1746440062671,6.1380929,1820.0,1819.9,44.532]
[1746440062970,4.30664,1820.0,1819.9,44.532]
[1746440063362,4.5801929,1820.0,1819.9,44.532]
[1746440065777,6.2398929,1820.0,1819.9,44.532]
[1746440066177,6.2398929,1820.0,1819.9,40.8]
[1746440067370,8.1371929,1820.0,1819.9,40.8]
[1746440067569,8.1371929,1820.0,1819.9,42.463]
[1746440068172,8.1371929,1820.0,1819.9,46.195]
[1746440070078,9.7654929,1820.0,1819.9,42.463]
[1746440070880,8.1371929,1820.0,1819.9,42.463]
[1746440071079,8.1371929,1820.0,1819.9,46.195]
[1746440075279,4.9293929,1820.0,1819.9,46.195]
[1746440075486,8.1371929,1820.0,1819.9,46.195]
[1746440075980,9.8212929,1820.0,1819.9,46.195]
[1746440077083,8.1371929,1820.0,1819.9,46.195]
[1746440082384,9.7720929,1820.0,1819.9,46.195]
[1746440082981,9.76678087,1820.0,1819.9,46.195]
[1746440086789,8.13188087,1820.0,1819.9,46.195]
[1746440088196,7.85832797,1820.0,1819.9,46.195]
[1746440089194,1.09884,1820.0,1819.9,46.195]
[1746440090291,1.09884,1820.0,1819.9,46.9931]
[1746440090592,4.30664,1820.0,1819.9,46.9931]
[1746440091192,1.09884,1820.0,1819.9,46.9931]
[1746440091795,3.2078,1820.2,1820.1,1.09878]
[1746440092091,4.30652,1820.2,1820.0,3.62181]
[1746440092294,4.30652,1820.2,1820.1,1.7166]
[1746440092486,4.30652,1820.2,1820.1,2.5147]
[1746440093090,4.30652,1820.2,1820.1,3.61348]
[1746440094195,4.30652,1820.2,1820.1,2.5147]
[1746440095291,4.30652,1820.2,1820.1,3.61348]
[1746440097298,4.5800729,1820.2,1820.1,3.61348]
[1746440097694,3.4813529,1820.2,1820.1,3.61348]
[1746440097889,3.2078,1820.2,1820.1,3.61348]
[1746440098092,4.5800729,1820.2,1820.1,3.61348]
[1746440100502,1.3722729,1820.2,1820.1,3.61348]
[1746440100800,4.5800729,1820.2,1820.1,3.61348]
[1746440101998,3.4813529,1820.2,1820.1,3.61348]
[1746440102203,4.5800729,1820.2,1820.1,3.61348]
[1746440103301,4.5800729,1820.2,1820.1,1.89688]
[1746440103703,6.1974729,1820.2,1820.1,0.7981]
[1746440103904,1.3723329,1820.1,1820.0,4.5384]
[1746440104104,3.7970329,1820.1,1820.0,4.5384]
[1746440104495,3.7970329,1820.1,1820.0,5.63724]
[1746440104705,3.7970329,1820.1,1820.0,3.732]
[1746440104901,4.6023329,1820.1,1820.0,3.732]
[1746440109209,3.4813529,1820.2,1820.1,1.09878]
[1746440109409,4.5800729,1820.2,1820.1,1.91988]
[1746440109710,4.5800729,1820.2,1820.1,2.4837]
[1746440110005,4.30652,1820.2,1820.1,2.4837]
[1746440110204,3.2078,1820.2,1820.1,2.4837]
[1746440110407,3.2078,1820.2,1820.1,3.58248]
[1746440110605,4.30652,1820.2,1820.1,2.4837]
[1746440114110,4.5800729,1820.2,1820.1,2.4837]
[1746440114708,4.30652,1820.2,1820.1,2.4837]
[1746440115310,4.30652,1820.2,1820.1,3.58248]
[1746440118609,3.2078,1820.2,1820.1,3.58248]
[1746440119008,4.30652,1820.2,1820.1,3.58248]
[1746440119209,4.5800729,1820.2,1820.1,3.58248]
[1746440119409,4.30652,1820.2,1820.1,3.58248]
[1746440121315,4.30652,1820.2,1820.1,4.42688]
[1746440121711,3.2078,1820.2,1820.1,4.42688]
[1746440122313,4.5800729,1820.2,1820.1,4.42688]
[1746440123315,3.4813529,1820.2,1820.1,4.42688]
[1746440126719,0.2735529,1820.2,1820.1,4.42688]
[1746440128815,0.2735529,1820.2,1820.1,7.97588]
[1746440130520,5.9114529,1820.6,1820.5,1.09854]
[1746440130719,5.0773529,1820.6,1820.5,1.09854]
[1746440131123,5.0773529,1820.6,1820.5,4.83054]
[1746440131818,5.0773529,1820.6,1820.5,7.39854]
[1746440132221,6.1758329,1820.6,1820.5,7.39854]
[1746440134629,5.0773529,1820.6,1820.5,7.39854]
[1746440135529,5.0773529,1820.6,1820.5,48.19854]
[1746440140034,6.1758329,1820.6,1820.5,48.19854]
[1746440140233,2.9680329,1820.6,1820.5,48.19854]
[1746440142630,1.8695529,1820.6,1820.5,48.19854]
[1746440143633,2.9680329,1820.6,1820.5,48.19854]
[1746440144937,1.8695529,1820.6,1820.5,48.19854]
[1746440146431,3.4813529,1820.7,1820.6,1.09848]
[1746440146635,3.4813529,1820.7,1820.6,2.65408]
[1746440147334,0.2735529,1820.7,1820.6,43.45408]
[1746440148637,1.9734529,1820.7,1820.6,43.45408]
[1746440148839,3.0718729,1820.7,1820.6,43.45408]
[1746440149337,1.9734529,1820.7,1820.6,43.45408]
[1746440152439,3.0718729,1820.7,1820.6,40.8]
[1746440152638,3.8832729,1820.7,1820.6,40.8]
[1746440152840,3.8832729,1820.7,1820.6,41.89848]
[1746440153240,3.8832729,1820.7,1820.6,40.8]
[1746440154140,3.8832729,1820.7,1820.6,41.89848]
[1746440155538,2.7848529,1820.7,1820.6,41.89848]
[1746440158037,3.8832729,1820.7,1820.6,41.89848]
[1746440158943,2.7848529,1820.7,1820.6,41.89848]
[1746440159642,2.7848529,1820.7,1820.6,40.8]
[1746440160642,7.0910729,1820.7,1820.6,40.8]
[1746440163939,3.8832729,1820.7,1820.6,40.8]
[1746440164246,7.0910729,1820.7,1820.6,40.8]
[1746440165548,1.09848,1820.6,1820.5,3.732]
[1746440165743,3.0856329,1820.6,1820.5,3.732]
[1746440165937,8.0856329,1820.6,1820.5,0.9848831]
[1746440166142,1.09884,1820.1,1819.9,9.48537]
[1746440166343,4.30664,1820.1,1819.9,3.58737]
[1746440166541,1.6239,1820.0,1819.9,3.58737]
[1746440167142,2.72606,1820.2,1819.9,47.0205]
[1746440167342,4.34996,1820.2,1820.0,2.80809]
[1746440167742,3.51796,1820.2,1820.1,1.09878]
[1746440167944,3.51796,1820.2,1820.1,3.61878]
[1746440169448,3.51796,1820.2,1820.1,2.52]
[1746440170549,3.51796,1820.2,1820.1,3.61878]
[1746440171246,3.51796,1820.2,1820.1,2.52]
[1746440172046,3.51796,1820.2,1820.1,0.8107]
[1746440174641,3.51796,1820.2,1820.1,1.90948]
[1746440174845,3.7915129,1820.2,1820.1,0.8107]
[1746440175051,1.3723329,1820.1,1820.0,3.732]
[1746440175250,3.8213329,1820.1,1820.0,3.732]
[1746440177246,7.0291329,1820.1,1820.0,3.732]
[1746440178155,1.09884,1820.0,1819.9,40.8]
[1746440178352,2.66264,1820.0,1819.9,40.8]
[1746440179149,2.9361929,1820.0,1819.9,44.532]
[1746440180452,3.38446019,1820.0,1819.9,44.532]
[1746440180755,2.9361929,1820.0,1819.9,44.532]
[1746440181353,6.4791929,1820.0,1819.9,44.532]
[1746440183853,6.91346965,1820.0,1819.9,44.532]
[1746440185056,6.4791929,1820.0,1819.9,44.532]
[1746440186953,6.20564,1820.0,1819.9,44.532]
[1746440187759,6.4791929,1820.0,1819.9,44.532]
[1746440187960,6.4791929,1820.0,1819.9,45.3119]
[1746440189461,4.64184,1820.0,1819.9,45.3119]
[1746440189661,4.64184,1820.0,1819.9,46.1075]
[1746440190163,4.64184,1820.0,1819.9,47.7297]
[1746440190355,4.9153929,1820.0,1819.9,47.7297]
[1746440190554,4.64184,1820.0,1819.9,47.7297]
[1746440190865,4.9153929,1820.0,1819.9,47.7297]
[1746440191162,6.5562929,1820.0,1819.9,47.7297]
[1746440193863,7.3425929,1820.0,1819.9,44.532]
[1746440194660,9.7640929,1820.0,1819.9,44.532]
[1746440196662,9.7640929,1820.0,1819.9,46.1928]
[1746440197169,9.7640929,1820.0,1819.9,44.532]
[1746440198262,9.7640929,1820.0,1819.9,47.0454]
[1746440198463,9.49054,1820.0,1819.9,47.0454]
[1746440199267,9.7640929,1820.0,1819.9,47.0454]
[1746440199468,9.7640929,1820.0,1819.9,44.532]
[1746440199867,9.7640929,1820.0,1819.9,46.1465]
[1746440200867,9.7640929,1820.0,1819.9,46.9631]
[1746440201069,9.49054,1820.0,1819.9,46.9631]
[1746440201263,7.84964,1820.0,1819.9,46.9631]
[1746440203063,8.1231929,1820.0,1819.9,46.9631]
[1746440203666,8.1231929,1820.0,1819.9,44.532]
[1746440203863,9.7944929,1820.0,1819.9,44.532]
[1746440204359,9.7944929,1820.0,1819.9,40.8]
[1746440206469,9.7944929,1820.0,1819.9,42.3578]
[1746440206671,9.7944929,1820.0,1819.9,43.2124]
[1746440213068,9.7944929,1820.0,1819.9,46.9444]
[1746440213265,1.09926,1819.3,1819.2,7.33030289]
[1746440213468,1.3728129,1819.3,1819.2,8.11000289]
[1746440213673,1.09926,1819.3,1819.2,8.11000289]
[1746440214175,1.09926,1819.3,1819.2,11.84200289]
[1746440214375,1.09924,1819.4,1819.2,53.74132289]
[1746440214584,1.09924,1819.4,1819.3,2.4342]
[1746440215166,1.09924,1819.4,1819.3,46.9662]
[1746440217177,1.09924,1819.4,1819.3,44.532]
[1746440217676,1.09924,1819.4,1819.3,46.9979]
[1746440219079,1.3727929,1819.4,1819.3,46.9979]
[1746440219278,4.5805929,1819.4,1819.3,46.9979]
[1746440219479,6.3087929,1819.4,1819.3,46.9979]
[1746440219780,6.3087929,1819.4,1819.3,45.378]
[1746440220178,6.3087929,1819.4,1819.3,41.646]
[1746440221685,0.2735529,1819.0,1818.7,12.06996618]
[1746440221876,4.5809229,1818.8,1818.7,9.75351618]
[1746440222179,4.5809229,1818.8,1818.7,45.63469618]
[1746440222383,1.3731829,1818.7,1818.6,13.37518579]
[1746440222572,2.9562829,1818.7,1818.6,13.37518579]
[1746440223574,2.9562829,1818.7,1818.6,54.17518579]
[1746440223779,6.4972829,1818.7,1818.6,54.17518579]
[1746440225277,6.4972829,1818.7,1818.6,40.8]
[1746440226987,4.64063,1818.7,1818.6,40.8]
[1746440227384,3.541,1818.7,1818.6,40.8]
[1746440227585,3.541,1818.7,1818.6,43.2344]
[1746440227886,3.541,1818.7,1818.6,44.33409]
[1746440228081,3.2078,1818.8,1818.6,49.33409]
[1746440228283,6.7498,1819.0,1818.8,1.09954]
[1746440228483,7.84925,1819.0,1818.9,1.6415]
[1746440229283,7.84925,1819.0,1818.9,5.3735]
[1746440232186,7.84925,1819.0,1818.9,3.732]
[1746440232386,8.1228029,1819.0,1818.9,3.732]
[1746440232986,7.84925,1819.0,1818.9,3.732]
[1746440233588,8.1228029,1819.0,1818.9,3.732]
[1746440234287,1.09951,1818.9,1818.8,1.6519]
[1746440234475,2.72871,1818.9,1818.8,1.6519]
[1746440235186,2.72871,1818.9,1818.8,5.3839]
[1746440235387,3.0022629,1818.9,1818.8,5.3839]
[1746440237588,1.3730629,1818.9,1818.8,5.3839]
[1746440238888,3.0137629,1818.9,1818.8,5.3839]
[1746440239190,3.0137629,1818.9,1818.8,3.732]
[1746440239490,3.8458629,1818.9,1818.8,3.732]
[1746440240083,1.09957,1818.8,1818.7,0.7911]
[1746440240283,1.3731829,1818.7,1818.6,40.8]
[1746440240483,4.9181829,1818.7,1818.6,43.2354]
[1746440240688,6.6366829,1818.7,1818.6,43.2354]
[1746440243088,6.6366829,1818.7,1818.6,40.8]
[1746440243284,7.4754829,1818.7,1818.6,40.8]
[1746440247290,1.09981,1818.4,1818.3,1.5942]
[1746440247491,7.85261,1818.4,1818.3,1.5942]
[1746440248090,7.85261,1818.4,1818.3,5.3262]
[1746440248290,7.85261,1818.4,1818.3,46.1262]
[1746440248291,9.47551,1818.4,1818.3,46.1262]
[1746440248791,9.7490629,1818.4,1818.3,43.41183]
[1746440248992,10.6053629,1818.4,1818.3,41.98897]
[1746440249291,10.6053629,1818.4,1818.3,40.8]
[1746440250291,9.7490629,1818.4,1818.3,40.8]
[1746440251590,1.09999,1818.1,1818.0,1.6376]
[1746440251789,7.85379,1818.1,1818.0,1.6376]
[1746440251991,1.10005,1818.0,1817.9,1.6783]
[1746440252193,3.0188029,1818.0,1817.9,1.6783]
[1746440252592,3.0188029,1818.0,1817.9,42.4783]
[1746440253188,3.0188029,1818.0,1817.9,40.8]
[1746440253592,3.4524575,1818.0,1817.9,40.8]
[1746440255095,1.10047,1817.3,1817.2,3.41735508]
[1746440255295,1.10047,1817.3,1817.2,0.20955508]
[1746440255997,1.10047,1817.3,1817.2,5.20955508]
[1746440256296,1.10047,1817.3,1817.2,44.74155508]
[1746440257297,1.10047,1817.3,1817.2,49.74155508]
[1746440257694,1.10047,1817.3,1817.2,51.34665508]
[1746440257893,3.2078,1817.4,1817.2,51.34665508]
[1746440258100,3.546,1817.5,1817.4,1.10041]
[1746440258397,1.10041,1817.4,1817.3,2.426]
[1746440258692,1.10039,1817.5,1817.3,3.52647]
[1746440258893,1.10039,1817.5,1817.4,2.70551]
[1746440259194,1.10039,1817.5,1817.4,1.6051]
[1746440259696,1.10039,1817.5,1817.4,2.70551]
[1746440259897,4.30813,1817.6,1817.4,6.6051]
[1746440260097,4.30813,1817.6,1817.5,1.6051]
[1746440260395,4.30813,1817.6,1817.5,2.70545]
[1746440261192,4.30813,1817.6,1817.5,6.43745]
[1746440261400,4.30813,1817.6,1817.5,5.3371]
[1746440263400,4.30813,1817.6,1817.5,6.43745]
[1746440263594,3.2078,1817.6,1817.5,6.43745]
[1746440264799,3.4813529,1817.6,1817.5,6.43745]
[1746440266602,3.2078,1817.6,1817.5,6.43745]
[1746440267003,4.5816429,1817.6,1817.5,3.732]
[1746440267699,4.5816429,1817.6,1817.5,5.3233]
[1746440267900,4.5816429,1817.6,1817.5,6.42365]
[1746440269101,1.3740229,1817.3,1817.2,0.20955508]
[1746440269303,0.2735529,1817.2,1816.9,2.4045]
[1746440269496,0.2735529,1817.4,1817.0,45.14282]
[1746440269700,0.2735529,1817.4,1817.3,1.10047]
[1746440269902,1.3739629,1817.4,1817.3,1.10047]
[1746440270299,1.3739629,1817.4,1817.3,46.41617]
[1746440271403,1.3739629,1817.4,1817.3,45.3157]
[1746440271705,2.23261453,1817.4,1817.3,45.3157]
[1746440271905,2.23261453,1817.4,1817.3,48.00107]
[1746440272603,1.13220453,1817.4,1817.3,48.00107]
[1746440272902,2.23261453,1817.4,1817.3,46.9006]
[1746440273106,2.23261453,1817.4,1817.3,48.00107]
[1746440273304,1.13220453,1817.4,1817.3,48.00107]
[1746440273707,2.23261453,1817.4,1817.3,46.9006]
[1746440273905,2.23400285,1817.4,1817.3,46.9006]
[1746440274106,2.23400285,1817.4,1817.3,43.1686]
[1746440274405,2.23400285,1817.4,1817.3,40.8]
[1746440274611,5.51140285,1817.4,1817.3,40.8]
[1746440276297,10.51140285,1817.4,1817.3,40.8]
[1746440276496,1.10066,1817.0,1816.9,2.4809]
[1746440276702,5.44205285,1817.0,1816.9,0.7858]
[1746440277108,7.13445285,1817.0,1816.9,4.5178]
[1746440277309,7.34960076,1817.0,1816.9,4.5178]
[1746440277504,5.65720076,1817.0,1816.9,45.3178]
[1746440277703,5.93075366,1817.0,1816.9,45.3178]
[1746440277906,5.65720076,1817.0,1816.9,45.3178]
[1746440278410,7.62315366,1817.0,1816.9,46.9057]
[1746440278610,5.65720076,1817.0,1816.9,46.9057]
[1746440278799,5.93075366,1817.0,1816.9,46.9057]
[1746440279312,5.65720076,1817.0,1816.9,46.9057]
[1746440279505,5.80209521,1817.0,1816.9,46.9057]
[1746440279905,5.52854231,1817.0,1816.9,46.9057]